fUSD/lending_fUSD_20240927
["ID","MTS","AMOUNT","RATE_DAILY","PERIOD"]
[339274553,1727431507745,153.1,0.000149,31]
[339274554,1727431507776,153.1,0.000149,31]
[339274555,1727431507823,153.1,0.000149,31]
[339274556,1727431544417,15014.76,0.00010813,2]
[339274557,1727431586081,150.0,0.00011088,2]
[339274558,1727431645592,150.0,0.00010959,2]
[339274559,1727431645692,150.0,0.0001085,2]
[339274560,1727431724334,1000.0,0.00010699,2]
[339274561,1727431729870,231.05,0.00010721,2]
[339274562,1727431738640,1625.14369598,0.00011,2]
[339274627,1727431832544,-150.0,0.00011131,2]
[339274628,1727431832554,-150.0,0.0001115,2]
[339274629,1727431832563,-350.0,0.00011164,2]
[339274630,1727431832572,-500.0,0.00011164,2]
[339274631,1727431832582,-1061.71,0.00011288,2]
[339274632,1727431832591,-150.0,0.00011323,2]
[339274633,1727431832600,-150.0,0.00011374,2]
[339274634,1727431832610,-150.0,0.000114,2]
[339274635,1727431832619,-150.0,0.00011455,2]
[339274636,1727431832628,-224.94,0.00011456,2]
[339274637,1727431832637,-299.99,0.00011456,2]
[339274638,1727431832647,-150.0,0.00011462,2]
[339274639,1727431832656,-150.0,0.00011504,2]
[339274640,1727431832666,-150.0,0.00011525,2]
[339274641,1727431832675,-415.65662729,0.00011572,2]
[339274642,1727431832684,-150.0,0.00011581,2]
[339274643,1727431832693,-150.0,0.00011589,2]
[339274644,1727431832704,-150.0,0.0001159,2]
[339274645,1727431832713,-150.0,0.00011662,2]
[339274646,1727431832722,-2463.22423271,0.00011703,2]
[339274647,1727431832732,-2463.22423266,0.00011714,2]
[339274648,1727431832741,-150.0,0.00011716,2]
[339274649,1727431832750,-2463.22423266,0.00011725,2]
[339274650,1727431832759,-150.0,0.00011727,2]
[339274651,1727431832768,-150.0,0.00011727,2]
[339274652,1727431832777,-2463.22423266,0.00011736,2]
[339274653,1727431832786,-150.0,0.00011747,2]
[339274654,1727431832796,-2463.22423266,0.00011747,2]
[339274655,1727431832805,-2463.22423266,0.00011759,2]
[339274656,1727431832814,-2463.22423266,0.0001177,2]
[339274657,1727431832824,-2463.22423266,0.00011781,2]
[339274658,1727431832833,-150.0,0.00011782,2]
[339274659,1727431832843,-150.0,0.00011788,2]
[339274660,1727431832852,-2463.22423266,0.00011792,2]
[339274661,1727431832861,-150.0,0.00011793,2]
[339274662,1727431832871,-318.85595472,0.00011803,2]
[339274663,1727431832880,-455.326,0.00011803,2]
[339274664,1727431832889,-319.06960767,0.00011803,2]
[339274665,1727431832898,-2463.22423266,0.00011803,2]
[339274666,1727431832908,-1957.73331223,0.00011803,2]
[339274667,1727431832984,150.0,0.00010696,2]
[339274668,1727431833021,150.0,0.00011087,2]
[339274669,1727431838647,-150.0,0.00011309,2]
[339274670,1727431838657,-150.0,0.00011444,2]
[339274671,1727431838667,-212424.77428777,0.00011803,2]
[339274672,1727431838677,-1163.8316,0.00011803,2]
[339274673,1727431838687,-150.0,0.00011808,2]
[339274674,1727431838697,-150.0,0.00011814,2]
[339274675,1727431838707,-150.0,0.00011875,2]
[339274676,1727431838717,-150.0,0.000119,2]
[339274677,1727431838727,-150.0,0.000119,2]
[339274678,1727431838737,-150.0,0.000119,2]
[339274679,1727431838746,-300.0,0.000119,2]
[339274680,1727431838755,-489.2,0.000119,2]
[339274681,1727431838764,-239.57615466,0.00011902,2]
[339274682,1727431838773,-500.0,0.00011902,2]
[339274683,1727431838782,-568.0,0.00011903,2]
[339274684,1727431838791,-54783.01033626,0.00011903,2]
[339274685,1727431838800,-1157428.51574612,0.00011903,4]
[339274686,1727431838811,-5041.6,0.00011903,4]
[339274687,1727431838822,-655.6964493,0.00011903,4]
[339274688,1727431838833,-717.96206054,0.00011903,4]
[339274689,1727431838845,-2510.72,0.00011903,4]
[339274690,1727431838856,-8752.22233078,0.00011903,4]
[339274691,1727431838869,-3047.57297324,0.00011903,4]
[339274692,1727431838917,-1134.71,0.00011903,4]
[339274693,1727431838938,-698.46349581,0.00011903,4]
[339274694,1727431838959,-3500.0,0.00011903,4]
[339274695,1727431838970,-2839.82716035,0.00011903,4]
[339274696,1727431838996,-88161.89124824,0.00011903,4]
[339274697,1727431839008,-297.97689013,0.00011903,4]
[339274704,1727431840247,-4832.22556236,0.00011903,4]
[339274705,1727431840259,-9920.5,0.00011903,4]
[339274706,1727431840270,-1610.53421101,0.00011903,4]
[339274707,1727431840285,-706.04,0.00011903,4]
[339274708,1727431840297,-3048.32772882,0.00011903,4]
[339274709,1727431840314,-10000.0,0.00011903,4]
[339274710,1727431840418,-86163.18088201,0.00011903,4]
[339274711,1727431840430,-30132.31558998,0.00011903,4]
[339274712,1727431840444,-354.26786219,0.00011903,4]
[339274713,1727431840459,-397.63098387,0.00011903,4]
[339274714,1727431840471,-20658.75,0.00011903,4]
[339274715,1727431840482,-500.0,0.00011903,4]
[339274716,1727431840496,-425.26754798,0.00011903,4]
[339274772,1727431843332,-432.0,0.00011903,4]
[339274773,1727431843343,-19225.41725305,0.00011903,4]
[339274774,1727431843355,-1395.13210903,0.00011903,4]
[339274775,1727431843366,-262.89000001,0.00011903,4]
[339274776,1727431843431,-335.72243784,0.00011903,4]
[339274777,1727431843451,-931.13278959,0.00011903,4]
[339274778,1727431843542,-5875.66929853,0.00011903,4]
[339274779,1727431843553,-659.52544,0.00011903,4]
[339274780,1727431843564,-715.36994382,0.00011903,4]
[339274781,1727431843576,-1310.89655929,0.00011903,4]
[339274782,1727431843587,-735.915,0.00011903,4]
[339274783,1727431843598,-530.95163184,0.00011903,4]
[339274784,1727431843609,-297.95376087,0.00011903,4]
[339274785,1727431843620,-293.30521316,0.00011903,4]
[339274786,1727431843631,-2833.13889606,0.00011903,4]
[339274787,1727431843643,-10003.93457314,0.00011903,4]
[339274788,1727431843654,-1211022.39711289,0.00011903,4]
[339274789,1727431843666,-46791.81250646,0.00011903,4]
[339274790,1727431843680,-12175.6,0.00011903,4]
[339274791,1727431843691,-5557.37127244,0.00011903,4]
[339274793,1727431846300,-512.0,0.00011903,2]
[339274794,1727431846310,-14482.0,0.00011903,4]
[339274795,1727431846395,-131793.99999981,0.00011903,4]
[339274797,1727431885366,150.0,0.00010525,2]
[339274798,1727431886008,-150.0,0.00011141,2]
[339274799,1727431905801,-250.0,0.00011479,2]
[339274800,1727431919476,-500.0,0.00011164,2]
[339274801,1727431920850,-500.0,0.00011164,2]
[339274802,1727432020418,1000.0,0.00015,30]
[339274803,1727432055476,1000.0,0.00015,30]
[339274804,1727432062606,150.0,0.00010959,2]
[339274805,1727432062629,150.0,0.00010959,2]
[339274806,1727432062649,127.76,0.00010959,2]
[339274807,1727432081748,22.24,9.522e-05,2]
[339274808,1727432081769,150.0,9.522e-05,2]
[339274809,1727432081791,258.61,9.522e-05,2]
[339274810,1727432081812,150.0,9.522e-05,2]
[339274811,1727432081834,150.0,9.522e-05,2]
[339274812,1727432081855,150.0,9.522e-05,2]
[339274813,1727432081878,141.38,9.522e-05,2]
[339274814,1727432082683,1000.0,0.00015,30]
[339274817,1727432114223,153.11,0.000149,31]
[339274818,1727432114560,153.11,0.000149,31]
[339274819,1727432114639,153.11,0.000149,31]
[339274820,1727432114679,153.11,0.000149,31]
[339274821,1727432114709,153.11,0.000149,31]
[339274822,1727432114738,153.11,0.000149,31]
[339274823,1727432114781,153.11,0.000149,31]
[339274825,1727432441843,150.0,0.00011106,2]
[339274826,1727432549086,6398.8895541,0.0001,2]
[339274827,1727432683790,1050.0,0.00011,2]
[339274828,1727432686845,154.89,0.00010959,2]
[339274829,1727432720477,153.12,0.000149,31]
[339274830,1727432720533,153.12,0.000149,31]
[339274831,1727432720583,153.12,0.000149,31]
[339274832,1727432720632,153.12,0.000149,31]
[339274833,1727432720707,153.12,0.000149,31]
[339274834,1727432720748,153.12,0.000149,31]
[339274835,1727432721014,153.12,0.000149,31]
[339274978,1727432758845,971.11,9.127e-05,2]
[339275010,1727432845443,150.0,0.00010973,2]
[339275011,1727432845802,150.0,0.00010577,2]
[339275012,1727432846044,150.0,0.00011039,2]
[339275014,1727432860275,500.0,0.00011106,2]
[339275015,1727432867583,179.95,0.00010909,2]
[339275016,1727432906024,150.0,0.0001049,2]
[339275017,1727432906083,150.0,0.00010652,2]
[339275018,1727432906180,150.0,0.00011074,2]
[339275050,1727432965425,150.0,0.00010925,2]
[339275051,1727432965853,150.0,0.00010595,2]
[339275052,1727432965942,150.0,0.000107,2]
[339275053,1727432982669,250.0,0.00010813,2]
[339275063,1727432993371,1000.0,0.00010855,2]
[339275064,1727433025496,150.0,0.00010367,2]
[339275081,1727433031626,-150.0,0.00011369,2]
[339275082,1727433031635,-550.0,0.00011391,2]
[339275083,1727433031782,150.0,0.00010059,2]
[339275089,1727433037814,-421.11,0.00011391,2]
[339275090,1727433037825,-150.0,0.00011414,2]
[339275091,1727433037835,-150.0,0.00011433,2]
[339275092,1727433037844,-159.2,0.00011461,2]
[339275093,1727433037854,-529.99372365,0.00011461,2]
[339275094,1727433037864,-150.0,0.00011515,2]
[339275095,1727433037873,-150.0,0.00011535,2]
[339275096,1727433037883,-412.1519961,0.00011583,2]
[339275097,1727433037895,-150.0,0.00011598,2]
[339275098,1727433037905,-150.0,0.00011624,2]
[339275099,1727433037914,-150.0,0.00011654,2]
[339275100,1727433037923,-150.0,0.00011677,2]
[339275101,1727433037932,-150.0,0.00011701,2]
[339275102,1727433037942,-755.0777,0.00011703,2]
[339275103,1727433037952,-150.0,0.00011723,2]
[339275104,1727433037962,-150.0,0.00011739,2]
[339275105,1727433037974,-150.0,0.00011771,2]
[339275106,1727433037984,-159.53480383,0.00011803,2]
[339275107,1727433037994,-1062.56920602,0.00011803,2]
[339275108,1727433038004,-150.0,0.00011884,2]
[339275109,1727433038013,-150.0,0.00011896,2]
[339275110,1727433038024,-427.175,0.00011902,2]
[339275111,1727433038034,-3874.7865069,0.00011902,2]
[339275112,1727433038044,-517.70330826,0.00011902,2]
[339275113,1727433038053,-198.9830497,0.00011902,2]
[339275114,1727433038063,-27694.20608971,0.00011903,2]
[339275115,1727433038074,-1710265.24124891,0.00011903,4]
[339275116,1727433038107,-44657.07541753,0.00011903,4]
[339275120,1727433038346,150.0,9.869e-05,2]
[339275122,1727433038381,150.0,0.00010901,2]
[339275123,1727433038449,150.0,0.00010139,2]
[339275124,1727433038611,150.0,9.929e-05,2]
[339275125,1727433039091,-150.0,0.00011131,2]
[339275126,1727433039165,150.0,9.609e-05,2]
[339275157,1727433039628,-150.0,0.00011727,2]
[339275159,1727433039637,-150.0,0.00011803,2]
[339275161,1727433039647,-150.0,0.00011855,2]
[339275163,1727433039658,-2839.03575,0.00011903,4]
[339275451,1727433042467,-1574.809488,0.00011903,4]
[339275457,1727433042552,-366.51475187,0.00011903,4]
[339275462,1727433042637,-24856.3089465,0.00011903,4]
[339275464,1727433042648,-5531.28302645,0.00011903,4]
[339275466,1727433042663,-5562.72028883,0.00011903,4]
[339275747,1727433045436,-384582.86381908,0.00011903,4]
[339275764,1727433045593,-2438.53564919,0.00011903,4]
[339275766,1727433045604,-1000.54103258,0.00011903,4]
[339277544,1727433085709,-150.0,0.00011225,2]
[339277545,1727433095864,-250.0,0.00011164,2]
[339277548,1727433206795,175.58,0.00010959,2]
[339277549,1727433325508,153.14,0.000149,31]
[339277550,1727433325567,153.14,0.000149,31]
[339277551,1727433325616,153.14,0.000149,31]
[339277552,1727433325684,153.14,0.000149,31]
[339277553,1727433325755,153.14,0.000149,31]
[339277554,1727433325810,153.14,0.000149,31]
[339277555,1727433325859,153.14,0.000149,31]
[339277556,1727433378192,970.41,8.983e-05,2]
[339277557,1727433492054,150.0,0.00010959,2]
[339277558,1727433492077,1250.74,0.00010959,2]
[339277559,1727433519066,250.0,0.00011101,2]
[339277560,1727433558040,200.0,0.00011066,2]
[339277561,1727433685192,237.8,0.00011092,2]
[339277562,1727433727839,246.73,0.00011093,2]
[339277563,1727433888810,150.0,0.00010959,2]
[339277564,1727433888832,48.27,0.00010959,2]
[339277565,1727433894077,11509.0,0.000103,5]
[339277566,1727433904734,98387.7016916,6.781e-05,7]
[339277567,1727433911438,150.0,8.954e-05,2]
[339277568,1727433911471,150.0,8.954e-05,2]
[339277569,1727433911505,150.0,8.954e-05,2]
[339277570,1727433911538,150.0,8.954e-05,2]
[339277571,1727433911571,150.0,8.954e-05,2]
[339277572,1727433911603,150.0,8.954e-05,2]
[339277573,1727433911636,44.38,8.954e-05,2]
[339277574,1727433918801,105.62,0.00010701,2]
[339277575,1727433918824,89.13826541,0.00010701,2]
[339277576,1727433925604,60.86173459,0.00011023,2]
[339277577,1727433925628,89.13826541,0.00011023,2]
[339277578,1727433929861,153.16,0.000149,31]
[339277579,1727433929922,153.16,0.000149,31]
[339277580,1727433929995,153.16,0.000149,31]
[339277581,1727433930070,153.16,0.000149,31]
[339277582,1727433930136,153.16,0.000149,31]
[339277583,1727433930195,153.16,0.000149,31]
[339277584,1727433930261,153.16,0.000149,31]
[339277585,1727433937307,60.86173459,0.00010849,2]
[339277586,1727433937330,251.73,0.00010849,2]
[339277587,1727433937353,19.27826541,0.00010849,2]
[339277588,1727434011512,232.35,0.00010836,2]
[339277591,1727434045736,150.0,0.00010898,2]
[339277592,1727434105709,150.0,0.00010872,2]
[339277593,1727434134901,703.45,0.00010876,2]
[339277621,1727434165590,150.0,9.962e-05,2]
[339277622,1727434165627,150.0,9.752e-05,2]
[339277623,1727434165666,150.0,0.00010127,2]
[339277624,1727434165752,150.0,0.00010261,2]
[339277629,1727434225727,150.0,9.697e-05,2]
[339277630,1727434225934,150.0,0.00010577,2]
[339277631,1727434226004,150.0,9.453e-05,2]
[339277632,1727434226064,150.0,0.00010822,2]
[339277633,1727434226293,150.0,9.972e-05,2]
[339277634,1727434226358,150.0,0.00010412,2]
[339277635,1727434226424,150.0,0.0001099,2]
[339277636,1727434226660,150.0,0.00010941,2]
[339277637,1727434226728,150.0,9.314e-05,2]
[339277642,1727434231818,-222.58899851,0.00011115,2]
[339277643,1727434231828,-500.0,0.00011164,2]
[339277644,1727434231840,-944.38,0.00011218,2]
[339277645,1727434231851,-150.0,0.00011255,2]
[339277646,1727434231864,-150.0,0.0001128,2]
[339277647,1727434231874,-2327.51836632,0.0001128,2]
[339277648,1727434231885,-150.0,0.00011325,2]
[339277649,1727434231896,-150.0,0.00011335,2]
[339277650,1727434231907,-150.0,0.00011372,2]
[339277651,1727434231916,-150.0,0.00011391,2]
[339277652,1727434231925,-150.0,0.00011423,2]
[339277653,1727434231936,-150.0,0.00011446,2]
[339277654,1727434231945,-150.0,0.00011463,2]
[339277655,1727434231955,-150.0,0.00011495,2]
[339277656,1727434231965,-150.0,0.00011518,2]
[339277657,1727434231974,-150.0,0.00011523,2]
[339277658,1727434231984,-150.0,0.00011524,2]
[339277659,1727434231995,-150.0,0.00011562,2]
[339277660,1727434232006,-150.0,0.00011569,2]
[339277661,1727434232017,-157.76087211,0.000116,2]
[339277662,1727434232029,-556.26670477,0.000116,2]
[339277663,1727434232072,150.0,0.00010294,2]
[339277664,1727434232086,-285.97242312,0.000116,2]
[339277665,1727434232097,-150.0,0.00011613,2]
[339277666,1727434232106,-499.99,0.00011613,2]
[339277667,1727434232116,-299.99,0.00011613,2]
[339277668,1727434232125,-150.0,0.00011633,2]
[339277669,1727434232135,-150.0,0.00011635,2]
[339277670,1727434232145,-150.0,0.00011659,2]
[339277671,1727434232156,-415.65662729,0.00011691,2]
[339277672,1727434232165,-150.0,0.00011757,2]
[339277673,1727434232176,-150.0,0.00011789,2]
[339277674,1727434232187,-544.22378553,0.00011793,2]
[339277675,1727434232200,-282.69925327,0.00011793,2]
[339277676,1727434232210,-150.0,0.00011802,2]
[339277677,1727434232220,-300.0,0.00011802,2]
[339277678,1727434232231,-178.76074673,0.00011803,2]
[339277679,1727434232258,-140.09520799,0.00011803,2]
[339277680,1727434232267,-489.729,0.00011803,2]
[339277681,1727434232279,-797.67401916,0.00011803,2]
[339277682,1727434232293,-1741.62398823,0.00011803,2]
[339277683,1727434232389,186.65536302,0.0001076,2]
[339277684,1727434232440,150.0,0.00010465,2]
[339277685,1727434237864,-621.0902633,0.00011803,2]
[339277686,1727434237877,-2820.98483153,0.00011803,2]
[339277687,1727434238037,-12527.12144053,0.00011803,2]
[339277688,1727434238077,-14571.13296336,0.00011803,2]
[339277689,1727434238087,-10883.0879,0.00011803,2]
[339277690,1727434238097,-230.1937,0.00011803,2]
[339277691,1727434238107,-500.0,0.00011807,2]
[339277692,1727434238117,-500.0,0.00011808,2]
[339277693,1727434238126,-500.0,0.00011808,2]
[339277694,1727434238136,-150.0,0.00011841,2]
[339277695,1727434238146,-150.0,0.00011842,2]
[339277696,1727434238155,-150.0,0.00011861,2]
[339277697,1727434238164,-150.0,0.00011877,2]
[339277698,1727434238173,-8500.0,0.00011891,2]
[339277699,1727434238183,-8500.0,0.000119,2]
[339277700,1727434238192,-2572.66170439,0.00011901,2]
[339277701,1727434238202,-274.78708593,0.00011902,2]
[339277702,1727434238211,-500.0,0.00011902,2]
[339277703,1727434238220,-500.0,0.00011902,2]
[339277704,1727434238230,-489.00725157,0.00011902,2]
[339277705,1727434238239,-450.0,0.00011902,2]
[339277706,1727434238248,-181.37862828,0.00011902,2]
[339277707,1727434238258,-567.0,0.00011903,2]
[339277708,1727434238267,-34167.82390165,0.00011903,2]
[339277709,1727434238276,-480973.13069153,0.00011903,4]
[339277710,1727434238321,-1280.80000019,0.00011903,4]
[339277725,1727434238580,-1999.04775051,0.00011903,4]
[339277731,1727434238627,-6260.99938487,0.00011903,4]
[339277733,1727434238638,-4100.0,0.00011903,4]
[339277735,1727434238649,-561.82928208,0.00011903,4]
[339277833,1727434239615,-3107.85901998,0.00011903,4]
[339277835,1727434239627,-86636.95704153,0.00011903,4]
[339277837,1727434239641,-298.57312534,0.00011903,4]
[339277839,1727434239653,-4010.853084,0.00011903,4]
[339277843,1727434239677,-18760.5019774,0.00011903,4]
[339277845,1727434239689,-18241.57205301,0.00011903,4]
[339277847,1727434239700,-388.52572766,0.00011903,4]
[339277849,1727434239712,-2933.56225702,0.00011903,4]
[339277851,1727434239723,-703.655,0.00011903,4]
[339277854,1727434239735,-94028.51986877,0.00011903,4]
[339277856,1727434239747,-7999.92109639,0.00011903,4]
[339277858,1727434239759,-2098.83755617,0.00011903,4]
[339277860,1727434239771,-14402.19677375,0.00011903,4]
[339277863,1727434239789,-33886.05425213,0.00011903,4]
[339277865,1727434239800,-160715.38281738,0.00011903,4]
[339277867,1727434239812,-2945.39012647,0.00011903,4]
[339277869,1727434239824,-312.3160075,0.00011903,4]
[339277871,1727434239835,-11154.02902372,0.00011903,4]
[339277873,1727434239847,-535.11898606,0.00011903,4]
[339277877,1727434239873,-516.682086,0.00011903,4]
[339277879,1727434239885,-4355.31238879,0.00011903,4]
[339277881,1727434239897,-1633.56266826,0.00011903,4]
[339277883,1727434239909,-1371.10397399,0.00011903,4]
[339277885,1727434239920,-533.1,0.00011903,4]
[339277887,1727434239932,-1490.48160631,0.00011903,4]
[339277889,1727434239943,-9203.11958714,0.00011903,4]
[339277891,1727434239955,-1065.9793395,0.00011903,4]
[339277894,1727434239978,-328.5181524,0.00011903,4]
[339277897,1727434239990,-1710.66428866,0.00011903,4]
[339277899,1727434240002,-475.21517826,0.00011903,4]
[339277901,1727434240014,-256.89893274,0.00011903,4]
[339277903,1727434240031,-1567.0,0.00011903,4]
[339277905,1727434240043,-4307.56043718,0.00011903,4]
[339277907,1727434240055,-670.7,0.00011903,4]
[339278210,1727434243384,-506.0,0.00011903,2]
[339278212,1727434243399,-1044.53462386,0.00011903,4]
[339278239,1727434245664,-226891.26141214,0.00011903,4]
[339278240,1727434245943,-402.04,0.00011903,4]
[339278241,1727434245955,-31983.52413414,0.00011903,4]
[339278242,1727434245985,-1740.74654837,0.00011903,4]
[339278245,1727434285370,150.0,9.272e-05,2]
[339278246,1727434390724,161.3,0.00011085,2]
[339278247,1727434396248,222.24,0.00011085,2]
[339278248,1727434418472,150.18,0.00010959,2]
[339278249,1727434419905,5000.0,0.000103,5]
[339278250,1727434454513,860.89,9.149e-05,2]
[339278251,1727434466662,163.68,0.00011036,2]
[339278252,1727434466928,163.68,0.00011043,2]
[339278253,1727434467229,163.68,0.0001105,2]
[339278254,1727434467479,163.68,0.00011056,2]
[339278255,1727434467621,163.68,0.00011063,2]
[339278256,1727434467810,163.68,0.0001107,2]
[339278257,1727434468012,163.68,0.00011077,2]
[339278258,1727434468230,163.68,0.00011084,2]
[339278259,1727434468434,163.68,0.00011091,2]
[339278260,1727434471055,1062.4,0.00011055,2]
[339278261,1727434483166,2000.0,0.00011039,2]
[339278262,1727434512860,1050.0,0.00011,2]
[339278263,1727434533200,153.18,0.000149,31]
[339278264,1727434533263,153.18,0.000149,31]
[339278265,1727434533300,153.18,0.000149,31]
[339278266,1727434533342,153.18,0.000149,31]
[339278267,1727434533404,153.18,0.000149,31]
[339278268,1727434533522,153.18,0.000149,31]
[339278269,1727434533582,153.18,0.000149,31]
[339278270,1727434544202,171.99,0.00011004,2]
[339278271,1727434599630,351.13,0.00010979,2]
[339278272,1727434691555,-799.0,0.00011115,2]
[339278273,1727434691581,-799.0,0.00011115,2]
[339278274,1727434691601,-474.67356308,0.00011115,2]
[339278275,1727434691625,-500.0,0.00011164,2]
[339278276,1727434691650,-860.89,0.00011413,2]
[339278277,1727434691674,-250.0,0.00011475,2]
[339278278,1727434691697,-1000.0,0.00011515,2]
[339278279,1727434691720,-250.0,0.00011526,2]
[339278280,1727434691742,-799.0,0.00011613,2]
[339278281,1727434691764,-300.0,0.0001177,2]
[339278282,1727434691787,-150.0,0.00011772,2]
[339278283,1727434691811,-1548.83916527,0.00011803,2]
[339278284,1727434691831,-2581.3986087,0.00011803,2]
[339278285,1727434691852,-9354.08666456,0.00011803,2]
[339278286,1727434691877,-1854.0164,0.00011803,2]
[339278287,1727434691899,-1000.0,0.00011803,2]
[339278288,1727434691920,-500.0,0.00011807,2]
[339278289,1727434691943,-241.36,0.00011807,2]
[339278290,1727434691967,-500.0,0.00011808,2]
[339278291,1727434691989,-1139.3817021,0.00011896,2]
[339278292,1727434692010,-1930.0,0.000119,2]
[339278293,1727434692032,-8500.0,0.000119,2]
[339278294,1727434692055,-150.0,0.00011901,2]
[339278295,1727434692075,-500.0,0.00011902,2]
[339278296,1727434692096,-500.0,0.00011902,2]
[339278297,1727434692119,-500.0,0.00011902,2]
[339278298,1727434692142,-500.0,0.00011902,2]
[339278299,1727434692163,-500.0,0.00011902,2]
[339278300,1727434692186,-1247.32,0.00011902,2]
[339278301,1727434692207,-500.0,0.00011902,2]
[339278302,1727434692228,-501.51950864,0.00011902,2]
[339278303,1727434692382,-500.0,0.00011902,2]
[339278304,1727434692402,-500.0,0.00011902,2]
[339278305,1727434692422,-500.0,0.00011902,2]
[339278306,1727434692445,-1247.32,0.00011902,2]
[339278307,1727434692466,-500.0,0.00011902,2]
[339278308,1727434692488,-500.0,0.00011902,2]
[339278309,1727434692519,-500.0,0.00011902,2]
[339278310,1727434692538,-500.0,0.00011902,2]
[339278311,1727434692558,-1247.32,0.00011902,2]
[339278312,1727434692578,-594.07,0.00011902,2]
[339278313,1727434692599,-500.0,0.00011902,2]
[339278314,1727434692619,-500.0,0.00011902,2]
[339278315,1727434692640,-500.0,0.00011902,2]
[339278316,1727434692660,-500.0,0.00011902,2]
[339278317,1727434692680,-1247.32,0.00011902,2]
[339278318,1727434692702,-500.0,0.00011902,2]
[339278319,1727434692722,-500.0,0.00011902,2]
[339278320,1727434692745,-500.0,0.00011902,2]
[339278321,1727434692765,-500.0,0.00011902,2]
[339278322,1727434692786,-169.97076869,0.00011902,2]
[339278323,1727434692807,-1247.32,0.00011902,2]
[339278324,1727434692827,-500.0,0.00011902,2]
[339278325,1727434692848,-500.0,0.00011902,2]
[339278326,1727434692868,-500.0,0.00011902,2]
[339278327,1727434692889,-500.0,0.00011902,2]
[339278328,1727434692911,-1247.32,0.00011902,2]
[339278329,1727434692933,-500.0,0.00011902,2]
[339278330,1727434692956,-500.0,0.00011902,2]
[339278331,1727434692978,-500.0,0.00011902,2]
[339278332,1727434693001,-500.0,0.00011902,2]
[339278333,1727434693022,-1247.32,0.00011902,2]
[339278334,1727434693045,-500.0,0.00011902,2]
[339278335,1727434693068,-500.0,0.00011902,2]
[339278336,1727434693092,-500.0,0.00011902,2]
[339278337,1727434693115,-500.0,0.00011902,2]
[339278338,1727434693136,-1247.32,0.00011902,2]
[339278339,1727434693161,-283.23361896,0.00011902,2]
[339278340,1727434783401,150.0,9.99e-05,2]
[339278341,1727434783426,150.0,9.99e-05,2]
[339278342,1727434783451,150.0,9.99e-05,2]
[339278343,1727434783476,150.0,9.99e-05,2]
[339278344,1727434783501,150.0,9.99e-05,2]
[339278345,1727434783524,250.0,9.99e-05,2]
[339278346,1727434783547,4130.0,9.99e-05,2]
[339278347,1727435065495,150.0,0.00010944,2]
[339278396,1727435071887,-179.95,0.00011134,2]
[339278397,1727435081561,150.0,0.00010959,2]
[339278398,1727435081583,194.12,0.00010959,2]
[339278399,1727435081608,62.25,0.00010959,2]
[339278400,1727435091989,150.0,9.177e-05,2]
[339278401,1727435092010,150.0,9.177e-05,2]
[339278402,1727435092032,182.23,9.177e-05,2]
[339278403,1727435092054,292.57,9.177e-05,2]